Cogmind - Beta 14 *** ADVENTURER MODE // 2025.03.24 @ 07:54:20 // Winter2019/RPGLIKE Player: Gallgagger Result: Establishing 0b11! Performance ------------- Evolutions (9) 4500 Regions Visited (17) 3400 Robots Destroyed (621) 3105 Value Destroyed (42437) 42437 Prototype IDs (295) 5900 Alien Tech Used (11) 2200 Bonus (58204) 58204 TOTAL SCORE: 119746 Bonus ------- Triggered High Security 500 High Alert Combat Kills 25506 Follower Combat Kills 320 Registered with UFD 300 MAIN.C Attacked Warlord 500 Warlord Defense Kills 6578 Scanned by Researcher 500 Pursued by Intercept 500 Destroyed MAIN.C Guards 500 Met MAIN.C 5000 Destroyed MAIN.C Shell 5000 Destroyed MAIN.C 10000 Win 3000 Cogmind --------- Core Integrity 1410/1500 Matter 425/425 Energy 786/790 System Corruption 11% Temperature Cool (0) Movement Hovering (24) Location 0b11 Command Parts ------- > --- POWER (3) -------- Light Quantum Reactor Vortex Chain Reactor > --- PROPULSION (5) --- Cooled Linear Gravjet Cooled Linear Gravjet Cooled Linear Gravjet Cooled Linear Gravjet (fused) Cooled Linear Gravjet > --- UTILITY (14) ----- Quantum Shading Machine Advanced Signal Interpreter Experimental Target Analyzer Experimental Target Analyzer Improved Armor Integrity Analyzer Nanoactuators Nanoactuators (fused) Advanced Actuator Array Advanced Actuator Array Improved Force Booster Experimental Reaction Control System Graphene Brace AEGIS Remote Shield Spacefold Activator > --- WEAPON (4) ------- Force Lance Plasma Lance Plasma Lance Plasma Lance > --- INVENTORY (6) ---- Protomatter-62 Protomatter-59 Protomatter-51 Micro Antimatter Reactor Centrium Light Armor Plating Centrium Light Armor Plating Peak State ------------ > --- POWER ------------ Zero-point Reactor Vortex Chain Reactor > --- PROPULSION ------- Cooled Linear Gravjet Cooled Linear Gravjet Cooled Linear Gravjet Cooled Linear Gravjet Cooled Linear Gravjet > --- UTILITY ---------- Quantum Shading Machine Advanced Signal Interpreter Experimental Target Analyzer Experimental Target Analyzer Improved Armor Integrity Analyzer Nanoactuators Nanoactuators Advanced Actuator Array Advanced Actuator Array Improved Force Booster Experimental Reaction Control System Graphene Brace AEGIS Remote Shield Spacefold Activator > --- WEAPON ----------- Force Lance Plasma Lance Plasma Lance Plasma Lance > --- INVENTORY -------- Protomatter Centrium Light Armor Plating Centrium Light Armor Plating Gamma Refractor [Rating: 229] Favorites ----------- Power Light Ion Engine Engine Light Ion Engine Power Core Light Nuclear Core Reactor Vortex Chain Reactor Propulsion Cooled Linear Gravjet Leg Cargo Legs Hover Unit Cooled Linear Gravjet Flight Unit Flight Unit Utility Nanoactuators Device Nanoactuators Processor Advanced Signal Interpreter Protection Centrium Light Armor Plating Artifact Spacefold Activator Weapon DM-GVY's Chainsaw Energy Gun Medium Laser Energy Cannon Phase Cannon Ballistic Gun Compact Gauss Rifle Launcher Vortex Catalyst Activator Special Weapon Improved Plasma Cutter Impact Weapon Heavy Mace Slashing Weapon DM-GVY's Chainsaw Piercing Weapon Plasma Lance Build | -11 -10 -10 -7 -7 -5 -4 -4 -4 -4 -3 -3 -3 -2 -2 -2 -1 -1 ------- Run | Yrd Mat Sub Rec Scr Fac Fac Upp Upp War Pro Res Qua Res Tes Sec Acc Com Slots Evolved 22 | 4 3 2 1 2 2 3 2 . . . . 1 1 . . . 1 Power 2 | 1 1 . . . . . . . . . . . . . . . . Propulsion 4 | 1 1 . . . 1 1 . . . . . . . . . . . Utility 13 | 1 1 1 1 2 1 2 2 . . . . . 1 . . . 1 Weapon 3 | 1 . 1 . . . . . . . . . 1 . . . . . Parts Attached 288 | 5 12 10 3 23 8 20 3 2 56 8 23 5 4 12 30 5 59 Power 31 | 2 6 . . 1 3 1 1 . 2 . . 1 . . 2 . 12 Engine 9 | 2 5 . . 1 . . 1 . . . . . . . . . . Core 4 | . 1 . . . 3 . . . . . . . . . . . . Reactor 18 | . . . . . . 1 . . 2 . . 1 . . 2 . 12 Propulsion 43 | . 3 1 1 . 3 5 . . 3 1 11 . . 2 12 . 1 Treads . | . . . . . . . . . . . . . . . . . . Leg 2 | . . 1 1 . . . . . . . . . . . . . . Wheel . | . . . . . . . . . . . . . . . . . . Hover 35 | . . . . . . 5 . . 3 1 11 . . 2 12 . 1 Flight 6 | . 3 . . . 3 . . . . . . . . . . . . Utility 136 | 1 2 1 1 15 2 13 2 1 21 7 11 . 3 7 16 2 31 Device 78 | 1 2 . . 10 2 11 1 . 11 4 6 . 3 7 8 . 12 Storage . | . . . . . . . . . . . . . . . . . . Processor 14 | . . . 1 3 . 2 1 . 2 . . . . . 1 . 4 Hackware . | . . . . . . . . . . . . . . . . . . Protection 35 | . . 1 . 2 . . . 1 8 3 5 . . . 3 1 11 Artifact 9 | . . . . . . . . . . . . . . . 4 1 4 Weapon 78 | 2 1 8 1 7 . 1 . 1 30 . 1 4 1 3 . 3 15 Energy Gun 6 | 1 . 2 . 2 . . . . . . . . . . . . 1 Energy Cannon 12 | . 1 1 . 2 . . . . 8 . . . . . . . . Ballistic Gun 14 | 1 . 4 1 1 . . . . 5 . . . . . . . 2 Ballistic Cannon . | . . . . . . . . . . . . . . . . . . Launcher 1 | . . . . . . . . . 1 . . . . . . . . Special Weapon 4 | . . . . . . . . . 3 . . . . 1 . . . Impact Weapon 5 | . . . . . . 1 . . 2 . . 2 . . . . . Slashing Weapon 25 | . . 1 . 2 . . . 1 10 . 1 2 . 2 . 3 3 Piercing Weapon 11 | . . . . . . . . . 1 . . . 1 . . . 9 Special Melee Weapon . | . . . . . . . . . . . . . . . . . . Unidentified Prototypes 49 | . . 1 . . . 1 . . 16 1 1 2 1 7 12 1 6 Parts Lost 8 | . . . . . . . . . 3 2 . . . . . . 3 Power 1 | . . . . . . . . . . . . . . . . . 1 Propulsion . | . . . . . . . . . . . . . . . . . . Utility 7 | . . . . . . . . . 3 2 . . . . . . 2 Weapon . | . . . . . . . . . . . . . . . . . . Highest Loss Streak 2 | . . . . . . . . . 1 2 . . . . . . 1 To Critical Strikes . | . . . . . . . . . . . . . . . . . . Average Slot Usage (%) 89 | . 91 87 80 74 87 95 100 100 97 85 90 89 87 91 91 90 93 Engine 4 | . 19 14 12 11 6 . 3 4 3 . . . . . . . . Core 2 | . . 7 6 5 7 9 4 4 3 . . . . . . . . Reactor 3 | . . . . . . 2 4 4 4 4 4 4 4 4 4 4 6 Leg 2 | . . 3 11 11 8 . . . . . . . . . . . . Hover 13 | . . . . . . 17 21 21 21 19 20 20 20 20 20 20 19 Flight 2 | . 24 14 . . 3 3 . . . . . . . . . . . Device 30 | . 26 22 18 18 19 33 39 38 33 29 35 38 37 40 40 40 33 Processor 8 | . . . 5 6 14 9 9 13 13 13 11 8 8 8 8 8 11 Protection 4 | . . 6 6 6 8 2 . . 3 5 4 4 4 3 1 1 4 Energy Gun 1 | . 10 5 . 2 . . . . . . . . . . . . . Ballistic Gun 2 | . 4 4 11 . 5 4 4 4 1 . . . . . . . . Slashing Weapon 8 | . . . 6 5 11 6 4 4 9 13 13 12 12 14 16 16 11 Peak Build Rating 229 | 6 17 45 52 82 89 120 133 134 163 162 160 180 164 188 207 201 229 Average Rating 128 | 2 12 31 50 57 80 102 129 133 142 147 154 157 158 176 193 193 208 On Entrance 111 | . 6 17 45 45 79 82 120 133 133 161 138 157 158 164 188 197 190 Naked Turns . | . . . . . . . . . . . . . . . . . . Heaviest Build 111 | 8 21 29 29 54 50 58 69 75 88 85 81 74 82 84 89 89 111 Greatest Support 115 | 8 23 66 86 86 86 71 71 76 80 80 85 85 85 89 94 94 115 Greatest Overweight (x) 1 | . . . . 1 . 1 . . 1 1 1 . . . 1 . 1 Average Overweight (x) . | . . . . . . . . . . . . . . . . . . Largest Inventory Capacity 6 | . . . 3 3 3 3 3 3 3 4 4 4 4 4 6 6 6 Average Capacity 3 | . . . 1 3 3 3 3 3 3 3 4 4 4 4 4 6 6 Most Carried 6 | . . . 3 3 3 3 3 3 3 4 4 4 4 4 6 6 6 Average Carried 2 | . . . . 2 2 2 1 1 2 2 3 3 3 3 4 6 3 Final Capacity 6 | . . . 3 3 3 3 3 3 3 4 4 4 4 4 6 6 6 Final Carried 6 | . . . 3 2 1 3 1 3 2 4 4 4 3 4 6 6 6 Class Distribution -------------------- 22% | Hacker-Gladiator 22% | Hacker-Sprinter 20% | Hacker-Scout 13% | Commander-Mutant 8% | Mutant 5% | Scavenger-Mutant Dominant Class ---------------- Mutant | -10/Materials Scavenger-Mutant | -10/Subcaves Commander-Mutant | -7/Recycling Commander-Mutant | -7/Scraptown Derelict-Gladiator | -5/Factory Hacker-Gladiator | -4/Factory Hacker-Gladiator | -4/Upper Caves Hacker-Gladiator | -4/Upper Caves Hacker-Gladiator | -4/Warlord Hacker-Gladiator | -3/Proximity Caves Hacker-Scout | -3/Research Hacker-Scout | -3/Quarantine Hacker-Scout | -2/Research Hacker-Scout | -2/Testing Hacker-Scout | -2/Section 7 Hacker-Scout | -1/Access Hacker-Sprinter | -1/Command Resources | -11 -10 -10 -7 -7 -5 -4 -4 -4 -4 -3 -3 -3 -2 -2 -2 -1 -1 ----------- Run | Yrd Mat Sub Rec Scr Fac Fac Upp Upp War Pro Res Qua Res Tes Sec Acc Com Matter Collected 3656 | 183 233 125 175 230 20 298 63 174 616 115 230 50 30 107 478 . 529 Remotely 5 | . . . . . . . . . . . . . . . . . 5 Salvage Created 46439 | 13 1183 324 751 23 348 2823 1004 994 4528 1398 881 853 737 797 4184 . 25598 Parts 1785 | 4 85 30 17 . 19 121 31 20 114 66 82 34 35 42 182 . 903 Haulers Intercepted 5 | . 2 . . . 1 . . . . 1 . . 1 . . . . Recyclers Shooed 1 | . . . . . . 1 . . . . . . . . . . . Parts Field Recycled . | . . . . . . . . . . . . . . . . . . Retrieved Matter . | . . . . . . . . . . . . . . . . . . Parts Self-Destructed 122 | . . 10 . . . . 32 15 . 65 . . . . . . . Prevented 6 | . . . . . . . 1 5 . . . . . . . . . Kills | -11 -10 -10 -7 -7 -5 -4 -4 -4 -4 -3 -3 -3 -2 -2 -2 -1 -1 ------- Run | Yrd Mat Sub Rec Scr Fac Fac Upp Upp War Pro Res Qua Res Tes Sec Acc Com Combat Hostiles Destroyed 661 | . 32 14 9 . 4 45 18 16 78 28 26 12 9 10 56 . 304 Melee 571 | . . . 2 . 4 44 14 9 53 28 26 12 9 10 56 . 304 Guns 28 | . 14 6 7 . . . . 1 . . . . . . . . . Cannons 39 | . 18 8 . . . . . . 13 . . . . . . . . AOE 8 | . . . . . . . . . 8 . . . . . . . . Classes Destroyed 31 | 1 4 2 5 . 1 4 1 . 6 . . . 1 2 1 . 3 Worker 8 | . . . . . . 4 . . . . . . . . . . 4 Tunneler 1 | 1 . . . . . . . . . . . . . . . . . Hauler 5 | . 2 . . . 1 . . . . 1 . . 1 . . . . Recycler 8 | . . . 1 . . 2 . . . . . . . . . . 5 Mechanic 12 | . . . . . . 2 . . . . . . . . . . 10 Operator 12 | . . . . . 1 2 . . . . . . . 1 2 . 6 Drone 1 | . . . . . . . . . . . . . 1 . . . . Turret 3 | . . 2 . 1 . . . . . . . . . . . . . Watcher 22 | . 3 . . . . 2 . . . . . 2 1 2 3 . 9 Swarmer 75 | . 3 7 . . . 10 10 1 4 5 10 . . . 5 . 20 Cutter 14 | . . . . . . . . . . . . . . . 3 . 11 Saboteur 15 | . . . . . . 1 . . 3 . . . . . 2 . 9 Grunt 246 | . 29 . 1 . . 15 1 7 25 18 4 9 2 1 19 . 115 Brawler 23 | . . . 1 . . 2 . 2 . . . . . . 1 . 17 Duelist 24 | . . . . . . 2 2 4 1 2 . . . . 1 . 12 Protector 14 | . . . . . . . . . . . . . . . . . 14 Researcher 6 | . . . . . . . . . . . . . . 1 5 . . Sentry 29 | . . . 3 . 2 3 2 1 . 2 1 . 3 . 3 . 9 Demolisher 2 | . . . . . . . . . . . . . . . . . 2 Specialist 4 | . . . . . . . . . 4 . . . . . . . . Hunter 55 | . . . 1 . 2 8 2 . 2 . . 3 2 5 4 . 26 Programmer 57 | . . . 3 . . 4 . . . . 10 . 1 3 6 . 30 Heavy 1 | . . . . . . . . . . . . . . . . . 1 Behemoth 11 | . . . . . . . 1 1 2 1 1 . . . 1 . 4 S7 Guard 3 | . . . . . . . . . . . . . . . 3 . . M Guard 2 | . . . . . . . . . . . . . . . . . 2 Tracker 4 | . . . . . . . . . . . . . . . 4 . . Combat Programmer 6 | . . . . . . . . . . . . . . . 4 . 2 Investigator 1 | . . . . . . . . . . . . . . . . . 1 Striker 13 | . . . . . . . . . 3 . . . . . . . 10 Executioner 19 | . . . . . . . . . 3 . . . . . . . 16 Alpha 7 2 | . . . . . . . . . . . . . . . . . 2 Fortress 1 | . . . . . . . . . . . . . . 1 . . . Subdweller 7 | . . 7 . . . . . . . . . . . . . . . Tinkerer 1 | . . . . . . . . . 1 . . . . . . . . Thug 8 | . . . . . . . . . 8 . . . . . . . . Savage 4 | . . . . . . . . . 4 . . . . . . . . Butcher 1 | . . . . . . . . . 1 . . . . . . . . Bouncer 6 | . . . . . . . . . 6 . . . . . . . . Martyr 1 | . . . . . . . . . 1 . . . . . . . . Marauder 1 | . . . . . . . . . 1 . . . . . . . . Mutant 7 | . . . . . . . . . 7 . . . . . . . . Commander 1 | . . . . . . . . . 1 . . . . . . . . Best Kill Streak 25 | 1 5 6 4 1 2 10 5 6 11 5 8 5 5 4 16 . 25 Combat Bots Only 20 | . 5 6 3 . 2 9 5 6 11 5 8 5 5 3 15 . 20 Max Kills in Single Turn 5 | 1 2 2 2 1 1 2 2 1 5 1 1 1 1 1 2 . 2 Gunslinging 1 | . 1 . . . . . . . . . . . . . . . . Exploded 5 | . . . . . . . . . 5 . . . . . . . . Melee 2 | . . . 1 . 1 1 2 1 1 1 1 1 1 1 2 . 2 Uniques/NPCs Destroyed 4 | . . . . . . . . . 2 . . . . . . . 2 Fake God Mode (-4/Warlord) Warlord (-4/Warlord) MAIN.C Shell (-1/Command) MAIN.C (-1/Command) Combat | -11 -10 -10 -7 -7 -5 -4 -4 -4 -4 -3 -3 -3 -2 -2 -2 -1 -1 -------- Run | Yrd Mat Sub Rec Scr Fac Fac Upp Upp War Pro Res Qua Res Tes Sec Acc Com Hostile Shots Fired 3988 | . 82 138 80 17 24 267 75 109 986 126 121 93 53 63 277 . 1477 Missed 2095 | . 33 65 31 10 6 84 42 59 558 44 60 52 34 33 142 . 842 Damage Taken 29417 | . 384 453 295 71 149 2441 436 617 5690 1360 1175 549 365 725 2725 30 11952 Core 21328 | . 306 327 204 60 103 1869 351 490 3956 954 775 422 257 502 2060 30 8662 Absorbed by Shields 4063 | . 64 180 103 25 57 861 160 226 1444 . . . . . . . 943 Redirected to Core 17640 | . 201 252 193 30 71 1477 286 440 3103 760 642 355 257 415 1758 . 7400 Redirected to Shielding 411 | . . . . . . . . . 170 . 78 22 37 104 . . . Ignored by Resistances 9389 | . 138 240 139 30 63 1059 169 232 1986 393 316 158 101 195 725 . 3445 Regen/Repaired (Parts) 18 | . . . . . . . . . . . . . . . 18 . . Core Remaining (%) 86 | 100 . . . 79 97 . . . . 96 . 97 . . 45 . 94 Volleys Fired 274 | 1 87 61 19 5 . 2 . 35 51 . . . . . . . 13 Largest 2 | 2 2 2 2 2 . 1 . 1 1 . . . . . . . 1 Hottest 170 | 70 110 110 66 170 . 30 . 30 50 . . . . . . . 75 Shots Fired 431 | 2 174 105 39 10 . 3 . 35 50 . . . . . . . 13 Gun 286 | 2 132 56 39 5 . 3 . 35 1 . . . . . . . 13 Cannon 139 | . 42 49 . 5 . . . . 43 . . . . . . . . Launcher 3 | . . . . . . . . . 3 . . . . . . . . Special 3 | . . . . . . . . . 3 . . . . . . . . Kinetic 143 | 1 45 12 39 . . 3 . 35 1 . . . . . . . 7 Thermal 233 | 1 129 93 . 10 . . . . . . . . . . . . . Explosive 3 | . . . . . . . . . 3 . . . . . . . . Electromagnetic 6 | . . . . . . . . . . . . . . . . . 6 Entropic 46 | . . . . . . . . . 46 . . . . . . . . Robot Hit Streak 47 | 1 34 47 37 8 . 10 . 15 27 . . . . . . . 19 Robot Miss Streak 2 | . 2 1 1 . . . . . 1 . . . . . . . . Penetration Max 1 | . . . 1 . . . . . . . . . . . . . . Secondary Targets 5 | . 4 . 1 . . . . . . . . . . . . . . Max Gunslinging Chain 1 | . 1 . 1 . . . . . . . . . . . . . . Shots Hit Robots 2907 | 1 141 82 37 2 18 189 58 93 320 124 108 51 42 83 237 . 1321 Core Hits 1180 | 1 61 25 16 1 9 78 21 21 138 51 36 26 18 29 101 . 548 Critical Kills 7 | . . . . . . 4 . 1 2 . . . . . . . . Critical Parts Destroyed 18 | . 1 . . . . 2 4 6 5 . . . . . . . . Critical Strikes 898 | . 9 8 . 1 6 70 14 26 129 47 33 16 11 16 62 . 450 Burn 17 | . 8 8 . 1 . . . . . . . . . . . . . Destroy 2 | . 1 . . . . . . 1 . . . . . . . . . Smash 25 | . . . . . . 6 4 7 8 . . . . . . . . Sever 777 | . . . . . 6 64 10 18 105 47 33 16 11 16 62 . 389 Impale 61 | . . . . . . . . . . . . . . . . . 61 Sunder 16 | . . . . . . . . . 16 . . . . . . . . Melee Attacks 3118 | . . . 4 1 19 215 62 93 311 142 125 79 87 104 310 28 1538 Impact 116 | . . . . . . 37 20 31 28 . . . . . . . . Slashing 2690 | . . . 4 1 19 178 42 62 283 142 125 79 87 104 310 28 1226 Piercing 312 | . . . . . . . . . . . . . . . . . 312 Sneak Attacks 97 | . . . 2 . 4 8 . . 2 1 1 2 2 2 15 . 58 Combat Hostiles 50 | . . . 2 . . 1 . . 1 . 1 2 1 1 10 . 31 Follow-up Attacks 1125 | . . . . . 3 31 17 28 105 51 46 20 15 44 120 . 645 Damage Inflicted 157766 | 13 1834 1233 971 62 1015 9162 2708 4008 17646 5705 5097 2565 2137 4820 15123 . 83667 Guns 2718 | 13 1252 498 725 23 . 44 . 107 . . . . . . . . 56 Cannons 4290 | . 582 735 . 39 . . . . 2934 . . . . . . . . Explosions 2496 | . . . . . . 413 . . 2083 . . . . . . . . Melee 148165 | . . . 246 . 1015 8705 2708 3901 12532 5705 5097 2565 2137 4820 15123 . 83611 Ramming . | . . . . . . . . . . . . . . . . . . Kinetic 1191 | . 259 . 725 . . 44 . 107 . . . . . . . . 56 Thermal 2883 | 13 1575 1233 . 62 . . . . . . . . . . . . . Explosive 524 | . . . . . . 413 . . 111 . . . . . . . . Electromagnetic . | . . . . . . . . . . . . . . . . . . Impact 3639 | . . . . . . 899 725 1138 877 . . . . . . . . Slashing 128594 | . . . 246 . 1015 7806 1983 2763 11752 5705 5097 2565 2137 4820 15123 . 67582 Piercing 16029 | . . . . . . . . . . . . . . . . . 16029 Entropic 4906 | . . . . . . . . . 4906 . . . . . . . . Highest Corruption 13 | . . . 3 . . 3 3 3 7 7 . . 1 4 13 . 11 Average Corruption 3 | . . . 2 . . 1 3 3 4 3 . . 1 1 9 . 3 Corruption Purged 6 | . . . . . . . . . . 6 . . . . . . . Corruption Blocked . | . . . . . . . . . . . . . . . . . . Effects 238 | . . . 18 . . 12 18 17 34 16 . . 1 9 36 . 77 Message Errors 61 | . . . 7 . . 2 6 6 10 6 . . . 2 11 . 11 Matter Fused 57 | . . . 2 . . 4 5 2 8 5 . . 1 2 8 . 20 Heat Flow Errors 33 | . . . 2 . . 4 2 2 6 1 . . . 2 4 . 10 Energy Discharges 27 | . . . 4 . . . 1 1 4 . . . . . 5 . 12 Parts Rejected 3 | . . . . . . . . 1 . . . . . . . . 2 Parts Fused 6 | . . . . . . . . 1 . 2 . . . . 1 . 2 Data Loss (minor) 26 | . . . 1 . . 1 3 1 3 . . . . 1 5 . 11 Data Loss (major) 10 | . . . 1 . . . . . 1 1 . . . 1 1 . 5 Misfires 3 | . . . 1 . . 1 . 1 . . . . . . . . . Alerts 8 | . . . . . . . 1 1 1 1 . . . 1 . . 3 Misdirections 2 | . . . . . . . . . . . . . . . 1 . 1 Weapon Failures 2 | . . . . . . . . 1 1 . . . . . . . . Overload Shots . | . . . . . . . . . . . . . . . . . . Overflow Damage 8612 | . 8 14 9 . 48 575 280 577 639 103 199 52 74 235 836 . 4963 Projectiles 182 | . 8 14 . . . . . . 160 . . . . . . . . Explosions 95 | . . . . . . 34 . . 61 . . . . . . . . Melee 8335 | . . . 9 . 48 541 280 577 418 103 199 52 74 235 836 . 4963 Knockbacks 17 | . . . . . . 3 6 3 5 . . . . . . . . Impact 16 | . . . . . . 2 6 3 5 . . . . . . . . Kinetic . | . . . . . . . . . . . . . . . . . . Secondary 1 | . . . . . . 1 . . . . . . . . . . . Self-Inflicted Damage 79 | . . . . . . 79 . . . . . . . . . . . Shots 1 | . . . . . . 1 . . . . . . . . . . . Rammed . | . . . . . . . . . . . . . . . . . . Targets Rammed . | . . . . . . . . . . . . . . . . . . Kicked . | . . . . . . . . . . . . . . . . . . Crushed . | . . . . . . . . . . . . . . . . . . Highest Temperature 377 | . 19 . 138 144 . 262 265 281 377 227 162 184 371 151 231 . 170 Average Temperature 78 | . 12 . 76 70 . 111 92 101 61 100 90 94 174 78 91 . 82 Received Heat Transfer 3801 | . 266 117 50 8 12 329 24 95 999 387 63 69 36 54 207 . 1085 Effects 2 | . . . . . . . . 1 1 . . . . . . . . Shutdowns 1 | . . . . . . . . . 1 . . . . . . . . Interference 1 | . . . . . . . . 1 . . . . . . . . . Siege Activations . | . . . . . . . . . . . . . . . . . . Robots Corrupted 16 | . . . . . . 2 4 6 4 . . . . . . . . Combat Hostiles 15 | . . . . . . 1 4 6 4 . . . . . . . . Parts Fried 20 | . . . . . . . 5 4 6 . . . . . . . 5 Impact Corruptions 35 | . . . . . . 6 9 11 9 . . . . . . . . Robots Melted . | . . . . . . . . . . . . . . . . . . Combat Hostiles . | . . . . . . . . . . . . . . . . . . Parts Melted 16 | 1 7 7 . . . . . . 1 . . . . . . . . Heat Transferred 8401 | 37 4588 3589 . 187 . . . . . . . . . . . . . Parts Sabotaged 10 | . . . . . . . . . 4 . . . . . . . 6 Parts Stolen . | . . . . . . . . . . . . . . . . . . Parts Stripped . | . . . . . . . . . . . . . . . . . . Power Chain Reactions . | . . . . . . . . . . . . . . . . . . Alert | -11 -10 -10 -7 -7 -5 -4 -4 -4 -4 -3 -3 -3 -2 -2 -2 -1 -1 ------- Run | Yrd Mat Sub Rec Scr Fac Fac Upp Upp War Pro Res Qua Res Tes Sec Acc Com Peak Influence 11687 | 5 558 . 202 . 124 1283 . . . . 709 609 591 397 1729 935 11687 Initial 907 | . 2 . . . . 46 . . . . 142 263 295 289 14 907 525 Average 2357 | 1 244 . 100 . 47 596 . . . . 249 479 385 156 695 920 5904 Maximum Alert Level 5 | . 2 . 1 . . 4 . . . . 3 2 2 1 5 3 5 Low Security (%) 26 | 100 43 . 92 . 100 16 . . . . 50 . . 70 14 . . Level 1 14 | . 38 . 7 . . 16 . . . . 34 17 78 29 11 . . Level 2 13 | . 18 . . . . 31 . . . . 13 82 21 . 27 . 2 Level 3 8 | . . . . . . 20 . . . . 1 . . . 32 100 7 Level 4 3 | . . . . . . 15 . . . . . . . . 7 . 4 Level 5 7 | . . . . . . . . . . . . . . . 5 . 17 High Security 25 | . . . . . . . . . . . . . . . . . 67 Max Security . | . . . . . . . . . . . . . . . . . . Squads Dispatched 98 | . 11 . . . 1 8 . 1 . . 4 4 2 2 21 . 44 Investigation 16 | . 11 . . . . 1 . . . . 1 1 . 1 1 . . Extermination 12 | . . . . . . 3 . . . . 3 . 1 1 2 . 2 Reinforcement 18 | . . . . . 1 1 . . . . . 2 1 . 7 . 6 Assault 46 | . . . . . . 3 . 1 . . . 1 . . 5 . 36 Garrison . | . . . . . . . . . . . . . . . . . . Intercept 6 | . . . . . . . . . . . . . . . 6 . . Searches Triggered . | . . . . . . . . . . . . . . . . . . Construction Impeded . | . . . . . . . . . . . . . . . . . . Haulers Reinforced . | . . . . . . . . . . . . . . . . . . Active Scanning Responses . | . . . . . . . . . . . . . . . . . . Cargo Convoy Interrupts . | . . . . . . . . . . . . . . . . . . Stealth | -11 -10 -10 -7 -7 -5 -4 -4 -4 -4 -3 -3 -3 -2 -2 -2 -1 -1 --------- Run | Yrd Mat Sub Rec Scr Fac Fac Upp Upp War Pro Res Qua Res Tes Sec Acc Com Distress Signals 33 | . 1 . . 3 1 2 . . . . 1 3 1 2 1 . 18 Communications Jammed . | . . . . . . . . . . . . . . . . . . Distress Signals . | . . . . . . . . . . . . . . . . . . Times Spotted 1164 | . 39 20 9 6 7 70 22 30 149 33 32 30 18 14 109 . 576 Peak Tracking Total 38 | . 4 8 3 5 3 9 5 15 30 7 12 9 6 4 17 . 38 Tactical Retreats 128 | . . 3 2 . . 9 2 8 19 2 3 1 4 1 10 . 64 Traps | -11 -10 -10 -7 -7 -5 -4 -4 -4 -4 -3 -3 -3 -2 -2 -2 -1 -1 ------- Run | Yrd Mat Sub Rec Scr Fac Fac Upp Upp War Pro Res Qua Res Tes Sec Acc Com Traps Triggered 17 | . 2 . . . . . . . 1 . 5 . 1 . 1 . 7 Indirectly . | . . . . . . . . . . . . . . . . . . Trap Hack Attempts . | . . . . . . . . . . . . . . . . . . Triggered . | . . . . . . . . . . . . . . . . . . Disarmed 6 | . . . . . . . . . . . . . . 6 . . . Reprogrammed 3 | . . . . . . . . . . . . 3 . . . . . Reused 1 | . . . . . . . . . . . . 1 . . . . . Traps Extracted . | . . . . . . . . . . . . . . . . . . Installed . | . . . . . . . . . . . . . . . . . . Triggered 47 | . . . . . . . . . 46 . . 1 . . . . . Machines | -11 -10 -10 -7 -7 -5 -4 -4 -4 -4 -3 -3 -3 -2 -2 -2 -1 -1 ---------- Run | Yrd Mat Sub Rec Scr Fac Fac Upp Upp War Pro Res Qua Res Tes Sec Acc Com Machines Disabled 31 | . . 1 . 5 . 4 . . 4 . . 2 . 5 7 1 2 Max in Single Turn 2 | . . 1 . 1 . 1 . . 1 . . 1 . 1 1 1 2 Garrison Access 5 | . . . . . . 2 . . . . 1 1 . 1 . . . Phase Generator 1 | . . . . . . . . . . . . . . . . . 1 Machines Repaired . | . . . . . . . . . . . . . . . . . . Machines Dismantled 1 | . . . . . . . . . 1 . . . . . . . . Machines Sabotaged 1 | . 1 . . . . . . . . . . . . . . . . Overloaded Fab Kills . | . . . . . . . . . . . . . . . . . . Hacking | -11 -10 -10 -7 -7 -5 -4 -4 -4 -4 -3 -3 -3 -2 -2 -2 -1 -1 --------- Run | Yrd Mat Sub Rec Scr Fac Fac Upp Upp War Pro Res Qua Res Tes Sec Acc Com Machines Accessed 66 | . 10 1 9 1 2 8 1 . 2 . 4 7 2 9 3 3 4 Terminals 38 | . 7 . 1 . 2 6 . . . . 2 6 . 6 3 3 2 Fabricators 3 | . . . . . . . . . . . 1 . 1 1 . . . Repair Stations 1 | . 1 . . . . . . . . . . . . . . . . Recycling Units 12 | . 2 . 8 . . . . . . . . . . . . . 2 Scanalyzers 1 | . . . . . . . . . . . . . . 1 . . . Garrison Access 6 | . . . . . . 2 . . . . 1 1 1 1 . . . Total Hacks 171 | . 33 3 10 5 3 16 1 . 7 . 12 18 5 31 4 7 16 Successful 112 | . 27 3 8 5 1 6 1 . 7 . 6 15 . 21 2 2 8 Failed 59 | . 6 . 2 . 2 10 . . . . 6 3 5 10 2 5 8 Catastrophic 7 | . . . . . 1 3 . . . . . 1 1 . 1 . . Database Lockouts . | . . . . . . . . . . . . . . . . . . Manual 89 | . 20 . 9 . 3 11 . . . . 6 8 . 15 2 . 15 Terminals 111 | . 30 . 2 . 3 12 . . . . 7 17 . 23 4 7 6 Fabricators 8 | . . . . . . . . . . . 2 . 2 4 . . . Repair Stations 1 | . 1 . . . . . . . . . . . . . . . . Recycling Units 20 | . 2 . 8 . . . . . . . . . . . . . 10 Scanalyzers 2 | . . . . . . . . . . . . . . 2 . . . Garrison Access 13 | . . . . . . 4 . . . . 3 1 3 2 . . . Terminal Hacks 58 | . 12 3 . 5 . 2 1 . 7 . 2 11 . 10 2 2 1 Record 9 | . . 3 . . . . . . 2 . 1 2 . . . . 1 Part Schematic 2 | . . . . . . . . . . . 1 1 . . . . . Robot Schematic 2 | . . . . . . . . . . . . 1 . 1 . . . Robot Analysis 11 | . 5 . . 5 . . . . . . . . . 1 . . . Prototype ID Bank 9 | . 3 . . . . . . . 5 . . . . 1 . . . Open Door 5 | . . . . . . . 1 . . . . . . . 2 2 . Branch Access Points 2 | . . . . . . 1 . . . . . . . 1 . . . Emergency Access Points 1 | . . . . . . . . . . . . . . 1 . . . Machine Index 1 | . . . . . . . . . . . . 1 . . . . . Terminal Index 1 | . . . . . . 1 . . . . . . . . . . . Alert Level 4 | . 2 . . . . . . . . . . 1 . 1 . . . Unreport Threat 4 | . 2 . . . . . . . . . . . . 2 . . . Locate Traps 1 | . . . . . . . . . . . . 1 . . . . . Disarm Traps 2 | . . . . . . . . . . . . . . 2 . . . Reprogram Traps 2 | . . . . . . . . . . . . 2 . . . . . Dispatch Records 2 | . . . . . . . . . . . . 2 . . . . . Fabricator Hacks 5 | . . . . . . . . . . . 2 . . 3 . . . Load Schematic 2 | . . . . . . . . . . . 1 . . 1 . . . Build 3 | . . . . . . . . . . . 1 . . 2 . . . Repair Station Hacks . | . . . . . . . . . . . . . . . . . . Recycling Unit Hacks . | . . . . . . . . . . . . . . . . . . Scanalyzer 2 | . . . . . . . . . . . . . . 2 . . . Insert Component 1 | . . . . . . . . . . . . . . 1 . . . Analyze 1 | . . . . . . . . . . . . . . 1 . . . Garrison Access Hacks 4 | . . . . . . 1 . . . . 1 1 . 1 . . . Seal Access 4 | . . . . . . 1 . . . . 1 1 . 1 . . . Unauthorized Hacks 43 | . 15 . 8 . 1 3 . . . . 1 3 . 5 . . 7 Terminals 26 | . 12 . . . 1 3 . . . . 1 3 . 5 . . 1 Track 1 | . . . . . . . . . . . . . . 1 . . . Botnet 19 | . 6 . . . 1 3 . . . . 1 3 . 4 . . 1 Sabotage 6 | . 6 . . . . . . . . . . . . . . . . Fabricators . | . . . . . . . . . . . . . . . . . . Repair Stations 1 | . 1 . . . . . . . . . . . . . . . . Patch 1 | . 1 . . . . . . . . . . . . . . . . Recycling Units 16 | . 2 . 8 . . . . . . . . . . . . . 6 Monitor 1 | . . . . . . . . . . . . . . . . . 1 Reject 2 | . . . . . . . . . . . . . . . . . 2 Recyclers 1 | . . . . . . . . . . . . . . . . . 1 Mask 2 | . . . . . . . . . . . . . . . . . 2 Tunnel 10 | . 2 . 8 . . . . . . . . . . . . . . Scanalyzers . | . . . . . . . . . . . . . . . . . . Garrison Access . | . . . . . . . . . . . . . . . . . . Data Cores Recovered 3 | . . . . . . 1 . . . . . . . 1 . . 1 Used . | . . . . . . . . . . . . . . . . . . Hacking Detections 39 | . 7 . 2 . 2 5 . . . . 2 4 2 8 1 2 4 Full Trace Events 4 | . 1 . . . . 1 . . . . 1 . . 1 . . . Feedback Events 1 | . . . . . . 1 . . . . . . . . . . . Corruption 1 | . . . . . . 1 . . . . . . . . . . . Feedback Blocked . | . . . . . . . . . . . . . . . . . . Robot Schematics Acquired 6 | . . . . . . . . . . . . 1 . 1 4 . . Robots Built . | . . . . . . . . . . . . . . . . . . Authchips . | . . . . . . . . . . . . . . . . . . Time 222 | . . . . . . . . . . . . . . 222 . . . Total Robot Build Rating . | . . . . . . . . . . . . . . . . . . Part Schematics Acquired 15 | . . . . . . . . . . . 1 1 . 1 12 . . Parts Built 3 | . . . . . . . . . . . 2 . . 1 . . . Authchips . | . . . . . . . . . . . . . . . . . . Time 235 | . . . . . . . . . . . 31 . . 204 . . . Total Part Build Rating 18 | . . . . . . . . . . . 10 . . 8 . . . Parts Repaired . | . . . . . . . . . . . . . . . . . . Time . | . . . . . . . . . . . . . . . . . . Parts Recycled . | . . . . . . . . . . . . . . . . . . Recycled Matter . | . . . . . . . . . . . . . . . . . . Retrieved Matter . | . . . . . . . . . . . . . . . . . . Retrieved Components . | . . . . . . . . . . . . . . . . . . Parts Scanalyzed 1 | . . . . . . . . . . . . . . 1 . . . Part Schematics Acquired 1 | . . . . . . . . . . . . . . 1 . . . Parts Damaged . | . . . . . . . . . . . . . . . . . . Bothacking | -11 -10 -10 -7 -7 -5 -4 -4 -4 -4 -3 -3 -3 -2 -2 -2 -1 -1 ------------ Run | Yrd Mat Sub Rec Scr Fac Fac Upp Upp War Pro Res Qua Res Tes Sec Acc Com Used RIF Installer . | . . . . . . . . . . . . . . . . . . Robots Hacked . | . . . . . . . . . . . . . . . . . . Non-combat . | . . . . . . . . . . . . . . . . . . Combat . | . . . . . . . . . . . . . . . . . . Robot Hacks Applied . | . . . . . . . . . . . . . . . . . . Relay Couplers Released 1 | . . . . . . 1 . . . . . . . . . . . Machine Destruction 1 | . . . . . . 1 . . . . . . . . . . . Fabnet Peak Effective % . | . . . . . . . . . . . . . . . . . . Robots Rewired 18 | . . . 13 . . 2 1 2 . . . . . . . . . Allies Hacked . | . . . . . . . . . . . . . . . . . . Hacks Repelled . | . . . . . . . . . . . . . . . . . . Allies | -11 -10 -10 -7 -7 -5 -4 -4 -4 -4 -3 -3 -3 -2 -2 -2 -1 -1 -------- Run | Yrd Mat Sub Rec Scr Fac Fac Upp Upp War Pro Res Qua Res Tes Sec Acc Com Total Allies 18 | . . . 13 . . 2 1 2 . . . . . . . . . Largest Group 13 | . . . 13 13 . 2 1 2 2 . . . . . . . . Highest-Rated Group 300 | . . . 300 300 . 98 48 96 96 . . . . . . . . Highest-Rated Ally 49 | . . . 40 40 . 49 48 49 49 . . . . . . . . Total Orders 21 | . . . 7 14 . . . . . . . . . . . . . STAY 15 | . . . 2 13 . . . . . . . . . . . . . FOLLOW 3 | . . . 2 1 . . . . . . . . . . . . . PICKUP 2 | . . . 2 . . . . . . . . . . . . . . COLLECT 1 | . . . 1 . . . . . . . . . . . . . . Ally Attacks 67 | . . . 10 37 . 13 7 . . . . . . . . . . Total Damage 2160 | . . . 27 1231 . 734 168 . . . . . . . . . . Kills 11 | . . . 1 7 . 2 1 . . . . . . . . . . Allies Corrupted . | . . . . . . . . . . . . . . . . . . Allies Melted . | . . . . . . . . . . . . . . . . . . Intel | -11 -10 -10 -7 -7 -5 -4 -4 -4 -4 -3 -3 -3 -2 -2 -2 -1 -1 ------- Run | Yrd Mat Sub Rec Scr Fac Fac Upp Upp War Pro Res Qua Res Tes Sec Acc Com Robot Analysis Total 11 | . 5 . . 5 . . . . . . . . . 1 . . . Derelict Logs Recovered 5 | . . 2 . . . . 1 2 . . . . . . . . . Drone Launches . | . . . . . . . . . . . . . . . . . . Drone Recoveries . | . . . . . . . . . . . . . . . . . . Exploration | -11 -10 -10 -7 -7 -5 -4 -4 -4 -4 -3 -3 -3 -2 -2 -2 -1 -1 ------------- Run | Yrd Mat Sub Rec Scr Fac Fac Upp Upp War Pro Res Qua Res Tes Sec Acc Com Turns Passed 21476 | 42 880 1728 1278 2364 497 1279 860 1068 1614 1053 829 535 631 808 1046 97 4867 Spaces Moved 27506 | 62 1244 2349 728 1844 477 1393 1218 1265 1493 1566 1069 763 863 1218 1528 205 8221 Core 529 | 62 117 . . 350 . . . . . . . . . . . . . Treads . | . . . . . . . . . . . . . . . . . . Legs 3173 | . . 734 728 1494 217 . . . . . . . . . . . . Wheels . | . . . . . . . . . . . . . . . . . . Hover 20456 | . . . . . . 1068 1218 1265 1493 1566 1069 763 863 1218 1519 203 8211 Flight 3327 | . 1127 1615 . . 260 325 . . . . . . . . . . . Fastest Speed 24 | 50 34 34 130 50 37 37 54 54 46 46 44 44 44 38 24 24 24 Average Speed 48 | 50 35 63 130 121 79 51 54 54 53 49 46 44 44 40 32 24 24 Slowest Speed 130 | 50 50 130 130 130 130 110 54 54 95 90 102 44 44 44 98 24 98 Overloaded Moves . | . . . . . . . . . . . . . . . . . . Propulsion Burnouts . | . . . . . . . . . . . . . . . . . . Robots Hopped 13 | . 6 . . . 5 2 . . . . . . . . . . . Cave-ins Triggered . | . . . . . . . . . . . . . . . . . . Spacefolds 7 | . . . . . . . . . . . . . . . 3 1 3 Exploration Rate (%) 63 | 3 98 92 91 75 11 32 96 96 90 97 22 86 30 80 61 4 78 Regions Visited 17 Branch Regions 11 Pre-discovered Areas 13 | . 2 3 8 . . . . . . . . . . . . . . Known Exits Taken 11 | . . . . . . 1 1 1 1 1 1 1 1 1 1 1 . Unknown Exits Taken 6 | 1 1 1 1 1 1 . . . . . . . . . . . . Scrap Searched 32 | . . 14 . 7 . . 3 3 . 5 . . . . . . . Spaces Dug 85 | . . . . 2 . 7 . 5 11 1 2 9 19 2 9 5 13 Terrain Destroyed 241 | . . . . 3 . 24 . 8 83 1 2 9 19 2 9 5 76 Melee 80 | . . . . . . 7 . 2 11 1 2 9 19 2 9 5 13 Projectile 9 | . . . . 3 . . . 4 2 . . . . . . . . AOE 150 | . . . . . . 17 . . 70 . . . . . . . 63 Terrain Rammed . | . . . . . . . . . . . . . . . . . . Walls Destroyed . | . . . . . . . . . . . . . . . . . . Machines Disabled . | . . . . . . . . . . . . . . . . . . Actions | -11 -10 -10 -7 -7 -5 -4 -4 -4 -4 -3 -3 -3 -2 -2 -2 -1 -1 --------- Run | Yrd Mat Sub Rec Scr Fac Fac Upp Upp War Pro Res Qua Res Tes Sec Acc Com Total 33907 | 68 1504 2468 1015 1957 564 1826 1396 1578 2129 1799 1348 936 1083 1501 1966 239 10530 Wait 2635 | . 139 20 202 64 42 136 93 155 178 38 107 95 146 190 188 12 830 Move 27450 | 61 1231 2348 727 1843 467 1389 1217 1264 1492 1565 1068 762 862 1217 1521 203 8213 Hop 11 | . 6 . . . 4 1 . . . . . . . . . . . Pick Up 75 | . . . 2 2 2 5 1 5 10 5 1 2 1 4 2 . 33 Fast Attach 128 | 5 7 6 1 19 3 9 2 1 18 5 10 4 1 1 8 2 26 Attach 23 | . . . . . 1 3 . . 4 1 1 . 1 1 . . 11 Detach 18 | . . . 2 . . 2 . . . 2 . . . . 1 . 11 Swap 145 | . 5 4 2 4 4 8 1 1 34 2 12 1 2 10 27 4 24 Drop 158 | 1 2 7 1 19 6 8 4 3 27 8 3 6 2 3 8 3 47 Fire 274 | 1 87 61 19 5 . 2 . 35 51 . . . . . . . 13 Melee 1589 | . . . 4 1 15 166 42 62 186 74 64 42 48 46 135 15 689 Ram . | . . . . . . . . . . . . . . . . . . Kick . | . . . . . . . . . . . . . . . . . . Crush . | . . . . . . . . . . . . . . . . . . Escape Stasis 106 | . . . . . . . . . . . . . . . 12 . 94 Rewire 73 | . . . 49 . . 14 3 7 . . . . . . . . . Trap . | . . . . . . . . . . . . . . . . . . Miscellaneous 1222 | . 27 22 6 . 20 83 33 45 129 99 82 24 20 29 64 . 539 Route ------- -11/Scrapyard -10/Materials (discovered 6 exits: [*Mat x3] / [*Min x2] / *Sub) -10/Subcaves (discovered 3 exits: [*Mat x2] / *Rec) -7/Recycling (discovered 2 exits: *Fac / *Scr) -7/Scraptown -5/Factory -4/Factory (discovered 3 exits: *Res / *Upp x2) -4/Upper Caves -4/Upper Caves (discovered 2 exits: *Res / *War) -4/Warlord -3/Proximity Caves -3/Research (discovered 3 exits: *Res / *Qua x2) -3/Quarantine -2/Research (discovered 2 exits: *Acc / *Tes) -2/Testing (discovered 2 exits: *Acc / *Sec) -2/Section 7 -1/Access -1/Command (discovered 2 exits: *Sur x2) 0b11 Command History --------- Turn | Location | Event 1 | -11/Scrapyard | Upgraded with Power slot (x1) 1 | -11/Scrapyard | Upgraded with Propulsion slot (x1) 1 | -11/Scrapyard | Upgraded with Utility slot (x1) 1 | -11/Scrapyard | Upgraded with Weapon slot (x1) 9 | -11/Scrapyard | Discovered new exit (range 15) 43 | -11/Scrapyard | Entered Materials 230 | -10/Materials | Reached level 2 236 | -10/Materials | Upgraded with Utility slot (x1) 245 | -10/Materials | Upgraded with Propulsion slot (x1) 252 | -10/Materials | Discovered new exit (range 16) 284 | -10/Materials | Discovered new exit (range 15) 385 | -10/Materials | Discovered new exit (range 10) 409 | -10/Materials | Discovered new exit (range 3) 439 | -10/Materials | Discovered new exit (range 8) 556 | -10/Materials | Discovered new exit (range 4) 703 | -10/Materials | Build established: Mutant 723 | -10/Materials | Reached level 3 736 | -10/Materials | Upgraded with Power slot (x1) 884 | -10/Materials | Reached level 4 923 | -10/Materials | Entered Subcaves 957 | -10/Subcaves | Visited 4L-MR0's lab 1024 | -10/Subcaves | Build established: Scavenger-Mutant 1048 | -10/Subcaves | Discovered new exit (range 16) 1056 | -10/Subcaves | Shifting Twisted Machinery released Sub. Monowheel 1057 | -10/Subcaves | Shifting Twisted Machinery released Sub. Laser 1067 | -10/Subcaves | Visited Clippyterm 1068 | -10/Subcaves | Learned Factory trap positions 1079 | -10/Subcaves | Learned location of Zion (-7) 1079 | -10/Subcaves | Met a Zionite searching for "candidates" 1097 | -10/Subcaves | Discovered new exit (range 11) 1109 | -10/Subcaves | Shifting Twisted Machinery released Mak. Thermal Plating 1112 | -10/Subcaves | Shifting Twisted Machinery released Flamer 1113 | -10/Subcaves | Shifting Twisted Machinery released Sub. Machine Gun 1114 | -10/Subcaves | Upgraded with Utility slot (x1) 1234 | -10/Subcaves | Shifting Twisted Machinery released Hvy. Battle Rifle 1308 | -10/Subcaves | Discovered new exit (range 15) 1329 | -10/Subcaves | Reached level 5 1457 | -10/Subcaves | A swath of the cavern ceiling suddenly collapsed 1663 | -10/Subcaves | Found Prototype Leg 1663 | -10/Subcaves | Identified Cargo Legs 1665 | -10/Subcaves | Attached Cargo Legs, gained temporary slots: Utility x2 1978 | -10/Subcaves | Build established: Mutant 2407 | -10/Subcaves | Upgraded with Weapon slot (x1) 2651 | -10/Subcaves | Entered Recycling 2653 | -7/Recycling | Reached level 6 2653 | -7/Recycling | Reached level 7 2680 | -7/Recycling | Reached level 8 2698 | -7/Recycling | Build established: Derelict-Mutant 2839 | -7/Recycling | Upgraded with Utility slot (x1) 2875 | -7/Recycling | Scanned before Scraplab entrance 3061 | -7/Recycling | Reached level 9 3126 | -7/Recycling | Build established: Mutant 3210 | -7/Recycling | Discovered new exit (range 5) 3516 | -7/Recycling | Reached level 10 3601 | -7/Recycling | Build established: Commander-Mutant 3875 | -7/Recycling | Entered Scraplab 3886 | -7/Recycling | Discovered new exit (range 2) 3929 | -7/Recycling | Entered Scraptown 3929 | -7/Scraptown | Accompanied by 13 allies 3929 | -7/Scraptown | System corruption cleaned by C-Scrubber 3975 | -7/Scraptown | Visited Fellowship of the Rings 3992 | -7/Scraptown | Visited Comm Corps 4013 | -7/Scraptown | Visited Cyclists 4039 | -7/Scraptown | Visited Junk Repository 4073 | -7/Scraptown | Visited The Evicted 4089 | -7/Scraptown | Visited Bundlers 4133 | -7/Scraptown | Upgraded with Utility slot (x1) 4196 | -7/Scraptown | Visited Assassins FH 4914 | -7/Scraptown | Visited UFD Registry 4914 | -7/Scraptown | Registered with UFD as "Shockboard" 4953 | -7/Scraptown | Visited Cartography Club 5054 | -7/Scraptown | Found Deep Structural Scanner 5090 | -7/Scraptown | Visited A0-MCA Data Center 5121 | -7/Scraptown | Visited Science Testing Area 5134 | -7/Scraptown | Visited Curators Association 5166 | -7/Scraptown | Visited Derelict Rescue Squad 5179 | -7/Scraptown | Visited Observation Area 5193 | -7/Scraptown | Visited Analyses Database 5217 | -7/Scraptown | Visited Abandonware Association 5224 | -7/Scraptown | Learned abandonware demo "OVRCLOCK.EXE" 5651 | -7/Scraptown | Upgraded with Utility slot (x1) 5790 | -7/Scraptown | Discovered new exit (range 3) 6167 | -7/Scraptown | Given a C+ rating by A0-MCA 6170 | -7/Scraptown | Found A0-MCA's Component Scanner 6227 | -7/Scraptown | Attacked by Scraptown defenders 6243 | -7/Scraptown | Found DM-GVY's Chainsaw 6293 | -7/Scraptown | Entered Factory 6294 | -5/Factory | Loaded intel: 67 trap records 6295 | -5/Factory | Reached level 11 6295 | -5/Factory | Reached level 12 6295 | -5/Factory | Reached level 13 6295 | -5/Factory | Reached level 14 6295 | -5/Factory | Reached level 15 6297 | -5/Factory | Lost 13 allies 6532 | -5/Factory | Build established: Derelict-Gladiator 6660 | -5/Factory | Upgraded with Utility slot (x1) 6666 | -5/Factory | Upgraded with Propulsion slot (x1) 6781 | -5/Factory | Discovered new exit (range 16) 6790 | -5/Factory | Entered another Factory area 6792 | -4/Factory | Reached level 16 6792 | -4/Factory | Reached level 17 6792 | -4/Factory | Reached level 18 6901 | -4/Factory | Build established: Scavenger-Gladiator 6906 | -4/Factory | Discovered new exit (range 13) 6963 | -4/Factory | Reached level 19 6975 | -4/Factory | Core integrity fell below 50% 7022 | -4/Factory | Core integrity fell below 20% 7052 | -4/Factory | Upgraded with Utility slot (x1) 7169 | -4/Factory | Reached level 20 7347 | -4/Factory | Build established: Gladiator 7474 | -4/Factory | Upgraded with Utility slot (x1) 7529 | -4/Factory | Reached level 21 7559 | -4/Factory | Upgraded with Propulsion slot (x1) 7666 | -4/Factory | Build established: Hacker-Gladiator 7688 | -4/Factory | Reached level 22 7715 | -4/Factory | Destroyed 9 combat bots 7790 | -4/Factory | First assault squad dispatched 7865 | -4/Factory | Identified exit to Upper Caves 7891 | -4/Factory | Reached level 23 8069 | -4/Factory | Entered Upper Caves 8072 | -4/Upper Caves | Encountered a Warlord checkpoint 8102 | -4/Upper Caves | Upgraded with Utility slot (x1) 8139 | -4/Upper Caves | Attracted the attention of an 0b10 outpost 8303 | -4/Upper Caves | Learned Research garrison access intel 8361 | -4/Upper Caves | Discovered new exit (range 7) 8364 | -4/Upper Caves | Identified exit to Upper Caves 8458 | -4/Upper Caves | Reached level 24 8556 | -4/Upper Caves | Spotted B-86 Titan 8694 | -4/Upper Caves | Destroyed B-86 Titan 8730 | -4/Upper Caves | Upgraded with Utility slot (x1) 8771 | -4/Upper Caves | Attracted the attention of an 0b10 checkpoint 8929 | -4/Upper Caves | Entered another Upper Caves area 9030 | -4/Upper Caves | Discovered new exit (range 15) 9037 | -4/Upper Caves | Identified exit to Research 9131 | -4/Upper Caves | Learned Research stockpile data 9180 | -4/Upper Caves | Discovered new exit (range 8) 9183 | -4/Upper Caves | Identified exit to Warlord 9290 | -4/Upper Caves | Spotted B-86 Titan 9316 | -4/Upper Caves | Attracted the attention of an 0b10 outpost 9613 | -4/Upper Caves | Destroyed B-86 Titan 9638 | -4/Upper Caves | Learned Research emergency access door positions 9708 | -4/Upper Caves | Reached level 25 9997 | -4/Upper Caves | Entered Warlord 9997 | -4/Warlord | Accompanied by 2 allies 10031 | -4/Warlord | Discovered new exit (range 14) 10044 | -4/Warlord | Opened side exit 10055 | -4/Warlord | Attacked by Warlord forces 10116 | -4/Warlord | Spotted S5-YBI(B) 10116 | -4/Warlord | Spotted HC-UAM(B) 10210 | -4/Warlord | Warlord's base attacked by MAIN.C 10291 | -4/Warlord | Found Prototype Energy Cannon 10291 | -4/Warlord | Identified Vortex Cannon 10386 | -4/Warlord | Destroyed 7 combat bots 10402 | -4/Warlord | Destroyed S5-YBI(B) 10418 | -4/Warlord | Found Vortex Cannon 10434 | -4/Warlord | Spotted D5-NF1(g) 10450 | -4/Warlord | Destroyed D5-NF1(g) 10560 | -4/Warlord | Warlord forces counterattacked 10563 | -4/Warlord | Spotted B-86 Titan 10566 | -4/Warlord | Spotted B-90 Cyclops 10766 | -4/Warlord | Found Prototype Special Weapon 10768 | -4/Warlord | Identified RU-N14's Throwing Claymores v3 10777 | -4/Warlord | Found RU-N14's Throwing Claymores v3 10795 | -4/Warlord | Found Prototype Launcher 10795 | -4/Warlord | Identified Vortex Catalyst Activator 10801 | -4/Warlord | Spotted Executioner 10810 | -4/Warlord | Destroyed Executioner 10831 | -4/Warlord | Destroyed 8 combat bots 10885 | -4/Warlord | Warlord base infiltrated, sounded retreat 10893 | -4/Warlord | Spotted Striker 10894 | -4/Warlord | Spotted B-86 Titan 10911 | -4/Warlord | Spotted B-90 Cyclops 10913 | -4/Warlord | Destroyed Striker 10985 | -4/Warlord | Reached level 26 11012 | -4/Warlord | Spotted Executioner 11057 | -4/Warlord | Destroyed Fake God Mode 11120 | -4/Warlord | Found Prototype Device 11120 | -4/Warlord | Identified Exp. Focal Shield 11122 | -4/Warlord | Found Prototype Processor 11122 | -4/Warlord | Identified Exp. Target Analyzer 11128 | -4/Warlord | Found Prototype Device 11128 | -4/Warlord | Identified Exp. Cloaking Device 11178 | -4/Warlord | Destroyed Warlord 11214 | -4/Warlord | Found Prototype Reactor 11214 | -4/Warlord | Identified Vortex Chain Reactor 11239 | -4/Warlord | Spotted Executioner 11261 | -4/Warlord | Spotted B-90 Cyclops 11264 | -4/Warlord | Destroyed Executioner 11281 | -4/Warlord | Destroyed B-90 Cyclops 11283 | -4/Warlord | Found Prototype Device 11283 | -4/Warlord | Identified Adv. Kinecellerator 11290 | -4/Warlord | Found Prototype Processor 11290 | -4/Warlord | Identified Exp. Targeting Computer 11297 | -4/Warlord | Spotted B-86 Titan 11340 | -4/Warlord | Destroyed B-86 Titan 11414 | -4/Warlord | Spotted Striker 11427 | -4/Warlord | Destroyed Striker 11479 | -4/Warlord | Spotted Executioner 11505 | -4/Warlord | Destroyed Executioner 11520 | -4/Warlord | Spotted Executioner 11521 | -4/Warlord | Spotted Striker 11524 | -4/Warlord | Spotted Executioner 11544 | -4/Warlord | Destroyed Striker 11569 | -4/Warlord | Destroyed 11 combat bots 11581 | -4/Warlord | Spotted Striker 11592 | -4/Warlord | Spotted Striker 11610 | -4/Warlord | Identified exit to Proximity Caves 11611 | -4/Warlord | Entered Proximity Caves 11613 | -3/Proximity Caves | Reached level 27 11684 | -3/Proximity Caves | Attracted the attention of an 0b10 base 12022 | -3/Proximity Caves | Attracted the attention of an 0b10 checkpoint 12063 | -3/Proximity Caves | Discovered exit to Research (range 7) 12196 | -3/Proximity Caves | Found Imp. Powered Armor 12320 | -3/Proximity Caves | Spotted B-86 Titan 12342 | -3/Proximity Caves | Reached level 28 12342 | -3/Proximity Caves | Destroyed B-86 Titan 12501 | -3/Proximity Caves | Build established: Hacker-Scout 12664 | -3/Proximity Caves | Entered Research 12667 | -3/Research | Loaded intel: 4 garrison access locations 12713 | -3/Research | Discovered new exit (range 14) 12925 | -3/Research | Spotted B-86 Titan 13052 | -3/Research | Destroyed B-86 Titan 13152 | -3/Research | Found Prototype Device 13152 | -3/Research | Identified Exp. Thermal Shield 13197 | -3/Research | Fabricated Weapon Mount (x2) 13269 | -3/Research | Discovered new exit (range 22) 13370 | -3/Research | Reached level 29 13434 | -3/Research | Discovered new exit (range 22) 13471 | -3/Research | Destroyed 8 combat bots 13493 | -3/Research | Identified exit to Quarantine 13493 | -3/Research | Entered Quarantine 13765 | -3/Quarantine | Found Alien Artifact 13780 | -3/Quarantine | Upgraded with Weapon slot (x1) 13781 | -3/Quarantine | Found Alien Impact Weapon 13781 | -3/Quarantine | Identified Core Stripper 13896 | -3/Quarantine | Discovered new exit (range 17) 13993 | -3/Quarantine | First assault squad dispatched 14027 | -3/Quarantine | Identified exit to Research 14028 | -3/Quarantine | Entered Research 14030 | -2/Research | Reached level 30 14456 | -2/Research | Spotted B-90 Cyclops 14468 | -2/Research | Spotted B-90 Cyclops 14539 | -2/Research | Discovered new exit (range 19) 14592 | -2/Research | Reached level 31 14597 | -2/Research | Discovered new exit (range 22) 14624 | -2/Research | Identified exit to Access 14647 | -2/Research | Upgraded with Utility slot (x1) 14659 | -2/Research | Identified exit to Testing 14659 | -2/Research | Entered Testing 14694 | -2/Testing | Found Prototype Device 14694 | -2/Testing | Identified AEGIS Remote Shield 14906 | -2/Testing | Discovered exit to Access (range 5) 14960 | -2/Testing | Found Prototype Device 14960 | -2/Testing | Identified Exp. Transmission Jammer 15358 | -2/Testing | Fabricated Nanosword (x1) 15389 | -2/Testing | Spotted Fortress 15420 | -2/Testing | Destroyed Fortress 15435 | -2/Testing | Found Prototype Device 15435 | -2/Testing | Identified Thermal Barrier 15437 | -2/Testing | Found Prototype Device 15437 | -2/Testing | Identified Exp. Force Field 15465 | -2/Testing | Discovered new exit (range 5) 15466 | -2/Testing | Identified exit to Section 7 15467 | -2/Testing | Entered Section 7 15468 | -2/Section 7 | Spotted S7 Guard 15469 | -2/Section 7 | Reached level 32 15479 | -2/Section 7 | Destroyed S7 Guard 15484 | -2/Section 7 | Found Alien Artifact 15484 | -2/Section 7 | Identified Core Physics Calibrator 15494 | -2/Section 7 | Spotted S7 Guard 15510 | -2/Section 7 | Found Prototype Processor 15510 | -2/Section 7 | Identified Exp. Core Analyzer 15632 | -2/Section 7 | Found Alien Artifact 15632 | -2/Section 7 | Identified Spacefold Activator 15718 | -2/Section 7 | Spotted S7 Guard 15763 | -2/Section 7 | Found Alien Artifact 15763 | -2/Section 7 | Identified Integrated Mediator 15763 | -2/Section 7 | Installed Integrated Mediator, increased core attachment efficiency 15777 | -2/Section 7 | Found Alien Artifact 15777 | -2/Section 7 | Identified Integrity Redistributor 15777 | -2/Section 7 | Used Integrity Redistributor, redistributed integrity from core (-3) 15864 | -2/Section 7 | Spotted S7 Guard 15875 | -2/Section 7 | Destroyed S7 Guard 15885 | -2/Section 7 | Found Alien Artifact 15890 | -2/Section 7 | Scanned by Researcher 15906 | -2/Section 7 | Found Prototype Device 15906 | -2/Section 7 | Identified Exp. ECM Suite 15916 | -2/Section 7 | Intercept squad dispatched 15943 | -2/Section 7 | Spotted Tracker 15944 | -2/Section 7 | Spotted Tracker 15947 | -2/Section 7 | Destroyed Tracker 15949 | -2/Section 7 | Destroyed Tracker 15967 | -2/Section 7 | First assault squad dispatched 15970 | -2/Section 7 | Spotted B-99 Colossus 16004 | -2/Section 7 | Found Alien Artifact 16004 | -2/Section 7 | Identified LRC Storage 16004 | -2/Section 7 | Installed LRC Storage, increased inventory capacity (+2) 16007 | -2/Section 7 | Found Alien Artifact 16007 | -2/Section 7 | Identified LRC Matter Compressor 16007 | -2/Section 7 | Installed LRC Matter Compressor, increased matter storage capacity (+125) 16021 | -2/Section 7 | Spotted Combat Programmer 16022 | -2/Section 7 | Spotted Combat Programmer 16029 | -2/Section 7 | Destroyed Combat Programmer 16032 | -2/Section 7 | System corruption reached 10% 16037 | -2/Section 7 | Destroyed Combat Programmer 16138 | -2/Section 7 | Destroyed B-99 Colossus 16250 | -2/Section 7 | Destroyed S7 Guard 16256 | -2/Section 7 | Found Alien Artifact 16265 | -2/Section 7 | Intercept squad dispatched 16279 | -2/Section 7 | Reached level 33 16280 | -2/Section 7 | Spotted Tracker 16282 | -2/Section 7 | Destroyed Tracker 16284 | -2/Section 7 | Core integrity fell below 50% 16284 | -2/Section 7 | Spotted Tracker 16285 | -2/Section 7 | Destroyed Tracker 16319 | -2/Section 7 | Spotted Combat Programmer 16319 | -2/Section 7 | Spotted Combat Programmer 16323 | -2/Section 7 | Destroyed Combat Programmer 16331 | -2/Section 7 | Destroyed Combat Programmer 16352 | -2/Section 7 | Destroyed 7 combat bots 16431 | -2/Section 7 | Found Alien Artifact 16431 | -2/Section 7 | Identified Integrated Dissipator 16431 | -2/Section 7 | Installed Integrated Dissipator, increased core heat dissipation (+20) 16445 | -2/Section 7 | Destroyed 15 combat bots 16506 | -2/Section 7 | Discovered exit to Access (range 8) 16508 | -2/Section 7 | Spotted B-90 Cyclops 16513 | -2/Section 7 | Entered Access 16514 | -1/Access | Core integrity fell below 50% 16515 | -1/Access | Reached level 34 16560 | -1/Access | Discovered new exit (range 5) 16562 | -1/Access | Identified exit to Command 16564 | -1/Access | Identified Subatomic Replicator 16564 | -1/Access | Used Subatomic Replicator to replicate DM-GVY's Chainsaw 16610 | -1/Access | Entered Command 16677 | -1/Command | Spotted B-99 Colossus 16741 | -1/Command | Destroyed B-99 Colossus 16860 | -1/Command | First assault squad dispatched 16874 | -1/Command | Reached level 35 16981 | -1/Command | Build established: Hacker-Sprinter 17206 | -1/Command | Destroyed 15 combat bots 17534 | -1/Command | Reached level 36 17588 | -1/Command | Destroyed 10 combat bots 17824 | -1/Command | High security lockdown imminent 17845 | -1/Command | Destroyed 11 combat bots 17904 | -1/Command | High security lockdown engaged 17974 | -1/Command | Spotted Executioner 17974 | -1/Command | Spotted Striker 17998 | -1/Command | Destroyed Striker 18023 | -1/Command | Destroyed Executioner 18075 | -1/Command | Destroyed 15 combat bots 18121 | -1/Command | Spotted Executioner 18126 | -1/Command | Spotted Executioner 18139 | -1/Command | Spotted Executioner 18139 | -1/Command | Spotted Executioner 18141 | -1/Command | Spotted Striker 18160 | -1/Command | Destroyed Striker 18169 | -1/Command | Destroyed Executioner 18207 | -1/Command | Destroyed Executioner 18214 | -1/Command | Spotted Investigator 18215 | -1/Command | Destroyed Investigator 18250 | -1/Command | Destroyed Executioner 18314 | -1/Command | Destroyed Executioner 18373 | -1/Command | Destroyed 20 combat bots 18375 | -1/Command | Reached level 37 18418 | -1/Command | Spotted Executioner 18418 | -1/Command | Spotted Striker 18419 | -1/Command | Spotted Striker 18450 | -1/Command | Destroyed Striker 18472 | -1/Command | Spotted Striker 18472 | -1/Command | Spotted Striker 18474 | -1/Command | Spotted Executioner 18546 | -1/Command | Destroyed Striker 18571 | -1/Command | Destroyed Striker 18592 | -1/Command | Destroyed 8 combat bots 18599 | -1/Command | Destroyed Striker 18685 | -1/Command | Destroyed 10 combat bots 18700 | -1/Command | Destroyed Executioner 18719 | -1/Command | Spotted Executioner 18719 | -1/Command | Spotted Executioner 18719 | -1/Command | Spotted Executioner 18730 | -1/Command | Identified Integrated Thermoelectric Network 18730 | -1/Command | Installed Integrated Thermoelectric Network, gained heat-energy exchange potential 18732 | -1/Command | Identified Core Regenerator 18732 | -1/Command | Used Core Regenerator, restored core integrity (+375) 18760 | -1/Command | Spotted Executioner 18760 | -1/Command | Spotted Striker 18775 | -1/Command | Destroyed Striker 18808 | -1/Command | Spotted Executioner 18811 | -1/Command | Spotted Striker 18860 | -1/Command | Destroyed 8 combat bots 18883 | -1/Command | Destroyed Striker 18894 | -1/Command | Spotted Executioner 18894 | -1/Command | Spotted Executioner 18894 | -1/Command | Spotted Executioner 18894 | -1/Command | Spotted Executioner 18894 | -1/Command | Spotted Striker 18894 | -1/Command | Spotted Striker 18894 | -1/Command | Spotted Alpha 7 18894 | -1/Command | Spotted Alpha 7 18942 | -1/Command | Destroyed Striker 18944 | -1/Command | Destroyed Executioner 18952 | -1/Command | Destroyed Executioner 18959 | -1/Command | Destroyed Executioner 18971 | -1/Command | Destroyed Executioner 18998 | -1/Command | Destroyed 9 combat bots 19034 | -1/Command | Destroyed Executioner 19081 | -1/Command | Destroyed Executioner 19171 | -1/Command | Destroyed Executioner 19203 | -1/Command | Destroyed Alpha 7 19259 | -1/Command | Destroyed Executioner 19473 | -1/Command | Destroyed 9 combat bots 19571 | -1/Command | Phase Generator disabled 19644 | -1/Command | Destroyed Striker 19656 | -1/Command | Destroyed Executioner 19659 | -1/Command | Destroyed Executioner 19682 | -1/Command | Destroyed Alpha 7 19685 | -1/Command | Found Exp. Target Analyzer 19694 | -1/Command | Spotted B-99 Colossus 19695 | -1/Command | Spotted B-99 Colossus 19826 | -1/Command | Destroyed B-99 Colossus 19959 | -1/Command | Destroyed B-99 Colossus 20090 | -1/Command | Reached level 38 20159 | -1/Command | Destroyed 11 combat bots 20232 | -1/Command | Upgraded with Utility slot (x1) 20232 | -1/Command | Found Exp. Core Analyzer 20240 | -1/Command | Destroyed 10 combat bots 20634 | -1/Command | Destroyed 12 combat bots 20699 | -1/Command | Spotted M Guard 20700 | -1/Command | Spotted Combat Programmer 20712 | -1/Command | Spotted Combat Programmer 20713 | -1/Command | Destroyed Combat Programmer 20715 | -1/Command | Destroyed Combat Programmer 20747 | -1/Command | Spotted M Guard 20824 | -1/Command | Destroyed M Guard 20829 | -1/Command | Destroyed M Guard 20829 | -1/Command | All MAIN.C guards destroyed 20846 | -1/Command | Found Prototype Reactor 20846 | -1/Command | Identified Zero-point Reactor 20847 | -1/Command | Found AEGIS Remote Shield 21059 | -1/Command | Met MAIN.C 21091 | -1/Command | Destroyed MAIN.C Shell 21091 | -1/Command | 0b10 Conduit disabled 21093 | -1/Command | MAIN.C activated Command garrisons 21108 | -1/Command | Destroyed MAIN.C 21110 | -1/Command | Discovered new exit (range 50) 21110 | -1/Command | Discovered new exit (range 82) 21110 | -1/Command | Extracted map data and part IDs from MAIN.C's data core 21126 | -1/Command | Spotted B-99 Colossus 21140 | -1/Command | Destroyed B-99 Colossus 21145 | -1/Command | P-80 Master assimilated allied R-10 Processor 21211 | -1/Command | Found Gamma Refractor 21408 | -1/Command | Triggered Gamma Refractor 21409 | -1/Command | System corruption reached 10% 21476 | -1/Command | Identified exit to Surface 21477 | *** | Establishing 0b11! Last Messages --------------- Lgt. Quantum Reactor. 21408_ Chain reaction triggered in Corrupted Lgt. Ion Engine. 21408_ Chain reaction triggered in Corrupted Quantum Reactor. 21411_ Protomatter-4 decays. 21415_ Slug penetrates Wall. 21418_ Acquired Mic. Antimatter Reactor. 21419_ K-01 Serf collects debris. 21420_ Acquired 5 matter. 21420_ K-01 Serf collects debris. 21421_ System corrupted: Heat flow error (+190). 21422_ K-01 Serf collects debris. 21430_ W-44 Eye suffers critical hit (Impale). 21430_ W-44 Eye destroyed. 21432_ K-01 Serf collects debris. 21436_ O-32 Director destroyed. 21446_ System corrupted: Matter fused (-8). 21473_ Acquired 13 matter. 21476_ EXIT=IDENTIFIED: SURFACE Map ----- +----------------------------------------------------+ | # ## # #?#?# " | | # ## """ # #?#?#"""""" | | ! ###!## "T"" # #?#?#"" | | ### ## %" "" + #?#?# | | " "" %" # #?#?# | | | """ """" + # ##### | | = """ """" ######[ # k | | %*! "" "" #?############## !%/ | | ! ###! *%=! ! | | %%= ################## """ | | !|[ #??????????????#?# " " | | " """##""T""######### #??????????????#?# " | | ""T"""##"""""#???????## ##??????????????#?####### | | ####################### #???????????????#???????? | | ???# # #???????????????######### | | ???# # #???????????????????????? | | ???# """" # #???????????????????????? | | ???# """" # #???????????????????????? | | ???# """" # #???????????????????????? | | ???# """" ]=! + #???????????????????????? | | #### ]=! # #???????????????????????? | | + = =! # #???????????????????????? | | #######+############### #???????????????????????? | | """"" #?????????????# ###?????????????????????? | | ""T"" #?????????????# #?????????????????????? | | #?????????????# @ #?????????????????????? | | #?????????????# #?????????????????????? | | #?????????????######?????????????????????? | | #????????????????????????????????????????? | | #????????????????????????????????????????? | | #????????????????????????????????????????? | | ##+######????????????????????????????????????????? | | #????????????????????????????????????????? | | #????????????????????????????????????????? | | "" #????????????????????????????????????????? | | """" #????????????????????????????????????????? | | """" !#????????????????????????????????????????? | | "" #????????????????????????????????????????? | | #????????????????????????????????????????? | | !#????????????????????????????????????????? | | #########????????????????????????????????????????? | | ?????????????????????????????????????????????????? | | ?????????????????????????????????????????????????? | | ?????????????????????????????????????????????????? | | ?????????????????????????????????????????????????? | | ?????????????????????????????????????????????????? | | ?????????????????????????????????????????????????? | | ?????????????????????????????????????????????????? | | ?????????????????????????????????????????????????? | | ?????????????????????????????????????????????????? | +----------------------------------------------------+ Best States ------------- Heat Dissipation 93 Energy Generation 103 Energy Capacity 840 Matter Stores 425 Matter Capacity 425 Sight Range 16 Robot Scan Range 26 Terrain Scan Range 24 Terrain Scan Density 510 Cloak Strength 4 Additional Mass Support 20 Armor Coverage 625 Resistance: KI 20 Resistance: TH 70 Resistance: EX 20 Resistance: EM 40 Resistance: I 20 Resistance: S 20 Resistance: P 20 Utility Shielding 90 Weapon Shielding 66 Point Defense Rating 160 Melee Speed Boost 50 Phase Shifting 15 Evasion (%) 89 Targeting Accuracy 20 Target Analysis 15 Core Analysis 8 Armor Integrity Analysis 40 Particle Charging 30 Force Boost 30 Salvage Targeting 2 Offensive Hacking 30 Defensive Hacking 10 Item Schematics ----------------- Weapon Mount | -3/Research | Hacked Imp. Force Booster | -3/Quarantine | Hacked Nanosword | -2/Testing | Scanalyzed Centrium Heavy Armor Plating | -2/Section 7 | Archive Imp. Energy Mantle | -2/Section 7 | Archive Exp. Focal Shield | -2/Section 7 | Archive Gravity Neutralizer | -2/Section 7 | Archive Exp. Gyrokinetic Inverter | -2/Section 7 | Archive Exp. Hacking Suite | -2/Section 7 | Archive Beam Splitter | -2/Section 7 | Archive Adv. Variable Charge Gun | -2/Section 7 | Archive Imp. Quantum Reactor | -2/Section 7 | Archive Cld. Nuclear Pulse Thruster | -2/Section 7 | Archive Imp. Q-thruster | -2/Section 7 | Archive Imp. Thermal Defense Suite | -2/Section 7 | Archive Robot Schematics ------------------ W-44 Eye | -3/Quarantine | Hacked A-27 Freighter | -2/Testing | Hacked T-07 Excavator | -2/Section 7 | Archive C-57 Dissector | -2/Section 7 | Archive R-10 Processor | -2/Section 7 | Archive L-61 Swordsman | -2/Section 7 | Archive Fabricated ------------ Weapon Mount | x2 | -3/Research Nanosword | x1 | -2/Testing Alien Tech Used ----------------- Core Stripper Core Physics Calibrator Spacefold Activator Integrated Mediator Integrity Redistributor LRC Storage LRC Matter Compressor Integrated Dissipator Subatomic Replicator Integrated Thermoelectric Network Core Regenerator Achievements -------------- Traitor Challenges ------------ None RPGLIKE | -11 -10 -10 -7 -7 -5 -4 -4 -4 -4 -3 -3 -3 -2 -2 -2 -1 -1 --------- Run | Yrd Mat Sub Rec Scr Fac Fac Upp Upp War Pro Res Qua Res Tes Sec Acc Com Levels Raised 37 | . 3 1 5 . 5 8 1 1 1 2 1 . 2 . 2 1 4 XP Earned 60944 | 4000 4719 1764 7105 776 8128 11151 1570 985 2389 2096 1613 768 1953 1077 2452 993 7405 XP Spent 59290 | 3860 2900 1900 2900 5250 3400 11000 6700 1100 2355 1650 . 1850 3800 . . . 10625 Upgrades 91 | 16 4 2 4 6 2 15 2 1 20 6 . 4 1 . . . 8 Power Slot 2 | 1 1 . . . . . . . . . . . . . . . . Propulsion Slot 4 | 1 1 . . . 1 1 . . . . . . . . . . . Utility Slot 13 | 1 1 1 1 2 1 2 2 . . . . . 1 . . . 1 Weapon Slot 3 | 1 . 1 . . . . . . . . . 1 . . . . . Core Integrity 18 | . . . . . . . . . 18 . . . . . . . . Heat Dissipation 8 | 8 . . . . . . . . . . . . . . . . . Energy Generation 4 | . . . . 2 . . . . . . . . . . . . 2 Mass Support 5 | 1 . . . . . 1 . 1 . . . . . . . . 2 Inventory Capacity 4 | . . . 3 . . . . . . 1 . . . . . . . Sensor Range 13 | . . . . . . 5 . . 2 . . 3 . . . . 3 Terrain Scan Density 5 | . . . . . . . . . . 5 . . . . . . . Ranged Accuracy 2 | 1 1 . . . . . . . . . . . . . . . . Melee Accuracy 4 | 1 . . . 2 . 1 . . . . . . . . . . . Hack Attack % 4 | 1 . . . . . 3 . . . . . . . . . . . Hack Defense % 2 | . . . . . . 2 . . . . . . . . . . . Protomatter Created 14608 | . 444 185 47 . 140 883 102 417 1382 930 715 263 225 282 1337 . 7256 Integrity Restored 26395 | . 394 437 141 . 423 1784 689 1020 2713 2256 1704 493 428 579 1397 . 11937 Core 20866 | . 306 327 141 . 210 1498 582 646 2597 2256 832 384 295 502 1248 . 9042 Parts 5529 | . 88 110 . . 213 286 107 374 116 . 872 109 133 77 149 . 2895 Protomatter Decayed 6827 | . 208 34 . 130 48 149 . . 1778 98 37 90 75 84 315 . 3781 Game ------ Seed LightpackTransmissionRipper Manual? 0 Play Time 05:17:10 Cumulative 284.4 hours Start 2025.03.22 @ 17:50:09 End 2025.03.24 @ 07:54:20 Sessions 9 Manual Loads 0 Difficulty Adventurer Special Mode Winter2019/RPGLIKE Game No. 116 Rogue 0 Adventurer 116 Explorer 0 Win Type 1 Total 12 Types 2/3/3/2/1/0/0/0/1 Lore% 82 Gallery% 77 Achievement% 79 Wizard Run 0 Options --------- Layout 2 ASCII 0 Keyboard 0 Movement Numpad Keybinds 0 Fullscreen 2 Font 24/Smallcaps Map View 50x44 Zoom Use 0% Tactical HUD 1 Map Filters NONE Filters NONE Steam 1 RUN: 368d7af5-e717-4fab-a70d-2519f6235f86